bitfinex-derivatives/quotes_BTCF0:USTF0_20241013
["timestamp","ask_amount","ask_price","bid_price","bid_amount"]
[1728858244927,0.3608,63000.0,62997.0,0.0301]
[1728858245228,0.3608,63000.0,62999.0,0.079386]
[1728858245932,0.4708,63000.0,62999.0,0.079386]
[1728858246131,0.550184,63000.0,62999.0,0.079386]
[1728858246438,0.550184,63000.0,62999.0,0.080386]
[1728858246826,0.550184,63000.0,62999.0,0.081386]
[1728858247924,0.11,63000.0,62999.0,0.081386]
[1728858249529,0.189384,63000.0,62999.0,0.002]
[1728858249836,0.299384,63000.0,62999.0,0.002]
[1728858250030,0.189384,63000.0,62999.0,0.002]
[1728858250225,0.299384,63000.0,62999.0,0.002]
[1728858250827,0.33086986,63000.0,62999.0,0.002]
[1728858251737,0.49602085,63000.0,62999.0,0.002]
[1728858251939,0.43602085,63000.0,62999.0,0.002]
[1728858252143,0.43666461,63000.0,62999.0,0.002]
[1728858253040,0.30975874,63000.0,62999.0,0.002]
[1728858253241,0.30975874,63000.0,62990.0,0.0037]
[1728858253242,0.079396,62991.0,62990.0,0.0037]
[1728858253444,0.079396,62991.0,62974.0,0.16]
[1728858253445,0.63168186,62991.0,62983.0,0.079406]
[1728858253645,0.63168186,62991.0,62981.0,0.0358]
[1728858253646,0.63168186,62991.0,62978.0,0.0037]
[1728858253647,0.079406,62983.0,62978.0,0.0037]
[1728858253940,0.5208,62979.0,62978.0,0.079412]
[1728858256236,0.601211,62979.0,62978.0,0.079412]
[1728858256439,0.5218,62979.0,62978.0,0.079412]
[1728858257531,0.601211,62979.0,62978.0,0.079412]
[1728858258441,0.601211,62979.0,62969.0,0.0037]
[1728858258442,0.079422,62970.0,62969.0,0.083123]
[1728858258645,0.239422,62970.0,62969.0,0.079423]
[1728858259645,0.19968044,62970.0,62969.0,0.079423]
[1728858260151,0.23942,62973.0,62972.0,0.07942]
[1728858260851,0.07942,62972.0,62971.0,0.04751887]
[1728858261037,0.07942,62972.0,62969.0,0.091423]
[1728858261038,0.079421,62971.0,62970.0,0.12694087]
[1728858261240,0.079421,62971.0,62970.0,0.079422]
[1728858261440,0.079421,62971.0,62970.0,0.12692512]
[1728858261838,0.079421,62971.0,62970.0,0.079422]
[1728858262047,0.079421,62971.0,62970.0,0.12691489]
[1728858262240,0.079421,62971.0,62970.0,0.13291489]
[1728858263137,0.079421,62971.0,62970.0,0.13691489]
[1728858263537,0.079421,62971.0,62970.0,0.089422]
[1728858265541,0.079421,62971.0,62970.0,0.01]
[1728858266941,0.079421,62971.0,62970.0,0.005]
[1728858267742,0.079421,62971.0,62970.0,0.002]
[1728858267743,0.080421,62971.0,62970.0,0.002]
[1728858269539,0.080421,62971.0,62970.0,0.081422]
[1728858269741,0.079421,62971.0,62970.0,0.001]
[1728858269949,0.080421,62971.0,62970.0,0.002]
[1728858276250,0.441221,62971.0,62970.0,0.002]
[1728858286757,0.080421,62971.0,62970.0,0.002]
[1728858286954,0.441221,62971.0,62970.0,0.002]
[1728858287150,0.080421,62971.0,62970.0,0.002]
[1728858287353,0.441221,62971.0,62970.0,0.002]
[1728858287755,0.080421,62971.0,62970.0,0.002]
[1728858287960,0.661221,62971.0,62970.0,0.002]
[1728858292551,0.69194192,62971.0,62970.0,0.002]
[1728858293162,1.16834192,62971.0,62970.0,0.002]
[1728858294054,0.079432,62962.0,62961.0,0.0037]
[1728858294255,0.079436,62959.0,62958.0,0.04749289]
[1728858294452,0.189436,62959.0,62958.0,0.04749289]
[1728858294757,0.079437,62958.0,62957.0,0.0615932]
[1728858295258,0.079439,62957.0,62956.0,0.06338523]
[1728858295457,0.079439,62957.0,62955.0,0.14282623]
[1728858295766,0.079439,62957.0,62956.0,0.06338523]
[1728858295955,0.189439,62957.0,62956.0,0.06338523]
[1728858296666,0.189439,62957.0,62956.0,0.11118626]
[1728858297159,0.189439,62957.0,62956.0,0.12018626]
[1728858297362,0.189439,62957.0,62956.0,0.19961043]
[1728858297662,0.189439,62957.0,62956.0,0.08842417]
[1728858298662,0.189439,62957.0,62956.0,0.009]
[1728858298962,0.189439,62957.0,62956.0,0.08842417]
[1728858299167,0.189439,62957.0,62956.0,0.009]
[1728858300065,0.299439,62957.0,62956.0,0.009]
[1728858302159,0.299439,62957.0,62956.0,0.07253167]
[1728858302755,0.079439,62957.0,62956.0,0.07253167]
[1728858302963,0.3608,62962.0,62956.0,0.009]
[1728858303158,0.3608,62962.0,62961.0,0.14295646]
[1728858303355,0.3608,62962.0,62961.0,0.079434]
[1728858303558,0.4708,62962.0,62961.0,0.079434]
[1728858304159,0.4728,62962.0,62961.0,0.079434]
[1728858304767,0.4728,62962.0,62961.0,0.1270708]
[1728858305863,0.5228,62962.0,62961.0,0.1270708]
[1728858306765,0.5228,62962.0,62961.0,0.1280708]
[1728858306968,0.5228,62962.0,62961.0,0.080434]
[1728858307164,0.602232,62962.0,62961.0,0.080434]
[1728858308165,0.5228,62962.0,62961.0,0.080434]
[1728858308372,0.602232,62962.0,62961.0,0.10908114]
[1728858309563,0.241432,62962.0,62961.0,0.10908114]
[1728858309773,0.241432,62962.0,62961.0,0.02964714]
[1728858310076,0.241432,62962.0,62961.0,0.10908114]
[1728858310077,0.162,62962.0,62961.0,0.10908114]
[1728858314975,0.162,62962.0,62961.0,0.29957121]
[1728858315175,0.00238285,62971.0,62970.0,0.079422]
[1728858315677,0.00238285,62971.0,62970.0,0.14294006]
[1728858316283,0.00238285,62971.0,62970.0,0.14394006]
[1728858316473,0.00438285,62971.0,62970.0,0.14494006]
[1728858317286,0.00438285,62971.0,62970.0,0.081422]
[1728858319685,0.00438285,62971.0,62970.0,0.14487828]
[1728858320698,0.00438285,62971.0,62970.0,0.081422]
[1728858320883,0.08380385,62971.0,62970.0,0.081422]
[1728858321090,0.08380385,62971.0,62970.0,0.1105574]
[1728858321392,0.24380385,62971.0,62970.0,0.002]
[1728858321898,0.08380385,62971.0,62970.0,0.002]
[1728858322097,0.24380385,62971.0,62970.0,0.002]
[1728858323199,0.08380385,62971.0,62970.0,0.002]
[1728858323710,0.24380385,62971.0,62970.0,0.002]
[1728858324005,0.08380385,62971.0,62970.0,0.002]
[1728858324188,0.24380385,62971.0,62970.0,0.002]
[1728858326801,0.72020385,62971.0,62970.0,0.002]
[1728858326997,0.24380385,62971.0,62970.0,0.002]
[1728858327692,0.24380385,62971.0,62962.0,0.0037]
[1728858327693,0.079431,62963.0,62962.0,0.0037]
[1728858328004,0.079431,62963.0,62959.0,0.02838721]
[1728858328005,0.079435,62960.0,62959.0,0.02838721]
[1728858328198,0.079437,62959.0,62956.0,0.04758058]
[1728858328399,0.16,62957.0,62956.0,0.04758058]
[1728858328795,0.6808,62957.0,62951.0,0.04760373]
[1728858329007,0.6808,62957.0,62949.0,0.06345628]
[1728858329008,0.079446,62951.0,62949.0,0.04760373]
[1728858329301,0.32,62952.0,62949.0,0.02892239]
[1728858329302,0.079448,62950.0,62949.0,0.02892239]
[1728858329503,0.079448,62950.0,62948.0,0.079449]
[1728858329689,0.079448,62950.0,62948.0,0.12705273]
[1728858330005,0.11,62949.0,62948.0,0.079449]
[1728858330196,0.1,62949.0,62948.0,0.079449]
[1728858330696,0.07945,62948.0,62947.0,0.04760373]
[1728858330902,0.07945,62948.0,62947.0,0.07656046]
[1728858331397,0.07945,62948.0,62947.0,0.02895673]
[1728858331601,0.06645,62948.0,62946.0,0.04760373]
[1728858331898,0.16,62947.0,62946.0,0.12705573]
[1728858332903,0.16,62947.0,62946.0,0.13105573]
[1728858333312,0.16,62947.0,62946.0,0.091452]
[1728858334804,0.239451,62947.0,62946.0,0.20273722]
[1728858335900,0.18379357,62947.0,62946.0,0.20273722]
[1728858336614,0.10434257,62947.0,62946.0,0.20273722]
[1728858337696,0.18379357,62947.0,62946.0,0.20273722]
[1728858341511,0.18379357,62947.0,62946.0,0.28195251]
[1728858341903,0.18379357,62947.0,62946.0,0.091452]
[1728858343507,0.10434257,62947.0,62946.0,0.091452]
[1728858346817,0.18379357,62947.0,62946.0,0.091452]
[1728858347413,0.18379357,62947.0,62946.0,0.012]
[1728858347612,0.54459357,62947.0,62946.0,0.012]
[1728858349110,0.57270539,62947.0,62946.0,0.012]
[1728858350315,0.49325439,62947.0,62946.0,0.012]
[1728858350502,0.46514257,62947.0,62946.0,0.091453]
[1728858350702,0.16,62950.0,62949.0,0.079449]
[1728858352118,0.16,62950.0,62949.0,0.080449]
[1728858352509,0.16,62950.0,62949.0,0.084449]
[1728858354408,0.5208,62950.0,62949.0,0.084449]
[1728858354613,0.5208,62950.0,62949.0,0.005]
[1728858354922,0.600247,62950.0,62949.0,0.005]
[1728858355524,0.631447,62950.0,62949.0,0.005]
[1728858358412,0.552,62950.0,62949.0,0.005]
[1728858359318,0.631447,62950.0,62949.0,0.005]
[1728858360315,0.471447,62950.0,62949.0,0.005]
[1728858360718,0.079456,62943.0,62942.0,0.0037]
[1728858361019,0.440256,62943.0,62939.0,0.17192588]
[1728858361221,0.16,62941.0,62940.0,0.07946]
[1728858361822,0.149,62941.0,62940.0,0.07946]
[1728858362625,0.149,62941.0,62939.0,0.06337232]
[1728858362825,0.229459,62941.0,62940.0,0.013]
[1728858363226,0.07946,62940.0,62939.0,0.006]
[1728858363415,0.07946,62940.0,62933.0,0.07921529]
[1728858363416,0.07947,62932.0,62931.0,0.03170558]
[1728858363617,0.07947,62932.0,62930.0,0.079473]
[1728858363618,0.5208,62932.0,62930.0,0.079473]
[1728858363817,0.5148,62932.0,62930.0,0.079473]
[1728858364126,0.594271,62932.0,62930.0,0.079473]
[1728858364317,0.594271,62932.0,62923.0,0.3645]
[1728858364318,0.5128,62932.0,62926.0,0.079478]
[1728858364518,0.5128,62932.0,62923.0,0.0037]
[1728858364519,0.16,62925.0,62924.0,0.07948]
[1728858364735,0.16,62925.0,62924.0,0.10830439]
[1728858365526,0.5208,62925.0,62924.0,0.07948]
[1728858365915,0.5218,62925.0,62924.0,0.08148]
[1728858366523,0.5228,62925.0,62924.0,0.08148]
[1728858368230,0.5228,62925.0,62924.0,0.002]
[1728858368436,0.602279,62925.0,62924.0,0.002]
[1728858371832,0.602279,62925.0,62916.0,0.3645]
[1728858371833,0.079489,62917.0,62916.0,0.0037]
[1728858372037,0.07949,62916.0,62913.0,0.079494]
[1728858372235,0.36172,62917.0,62908.0,0.0621]
[1728858372428,0.3608,62917.0,62916.0,0.07949]
[1728858373934,0.5228,62917.0,62916.0,0.07949]
[1728858374624,0.5218,62917.0,62916.0,0.07949]
[1728858374937,0.5218,62917.0,62908.0,0.09387745]
[1728858374938,0.60229,62917.0,62913.0,0.079494]
[1728858375138,0.16,62914.0,62913.0,0.079494]
[1728858376533,0.161,62914.0,62913.0,0.079494]
[1728858377726,0.162,62914.0,62913.0,0.079494]
[1728858378124,0.079499,62909.0,62908.0,0.02807745]
[1728858378330,0.079499,62909.0,62905.0,0.15871929]
[1728858378331,0.079503,62906.0,62905.0,0.15871929]
[1728858378529,0.079503,62906.0,62905.0,0.1867343]
[1728858378530,0.16,62906.0,62905.0,0.1867343]
[1728858379739,0.16,62906.0,62905.0,0.15871929]
[1728858379740,0.161,62906.0,62905.0,0.15871929]
[1728858379935,0.001,62906.0,62905.0,0.15871929]
[1728858380136,0.161,62906.0,62905.0,0.15871929]
[1728858380331,0.171,62906.0,62905.0,0.15871929]
[1728858380537,0.250503,62906.0,62905.0,0.15871929]
[1728858381339,0.251503,62906.0,62905.0,0.15871929]
[1728858382736,0.251503,62906.0,62905.0,0.079504]
[1728858385143,0.251503,62906.0,62898.0,0.3608]
[1728858385144,0.079506,62904.0,62898.0,0.3608]
[1728858385443,0.079506,62904.0,62898.0,0.46841153]
[1728858385444,0.17,62899.0,62898.0,0.46841153]
[1728858386244,0.17,62899.0,62898.0,0.10761153]
[1728858386645,0.171,62899.0,62898.0,0.10761153]
[1728858387743,0.172,62899.0,62898.0,0.10761153]
[1728858387943,0.251512,62899.0,62898.0,0.10761153]
[1728858388153,0.172,62899.0,62898.0,0.10761153]
[1728858389049,0.251512,62899.0,62898.0,0.10761153]
[1728858389945,0.172,62899.0,62898.0,0.10761153]
[1728858391236,0.251512,62899.0,62898.0,0.10761153]
[1728858394153,0.172,62899.0,62898.0,0.10761153]
[1728858401357,0.251512,62899.0,62898.0,0.10761153]
[1728858401659,0.079516,62896.0,62895.0,0.079516]
[1728858401859,0.079517,62895.0,62893.0,0.07921529]
[1728858402060,0.3608,62896.0,62893.0,0.07921529]
[1728858402061,0.249518,62894.0,62893.0,0.07921529]
[1728858402261,0.249518,62894.0,62893.0,0.19035091]
[1728858402459,0.249518,62894.0,62893.0,0.19048124]
[1728858402659,0.249518,62894.0,62893.0,0.15890818]
[1728858403181,0.249518,62894.0,62893.0,0.26989532]
[1728858403384,0.250518,62894.0,62893.0,0.26989532]
[1728858404286,0.250518,62894.0,62893.0,0.26992245]
[1728858405185,0.251518,62894.0,62893.0,0.19050614]
[1728858405880,0.612318,62894.0,62893.0,0.19050614]
[1728858406077,0.612318,62894.0,62893.0,0.15895406]
[1728858406378,0.612318,62894.0,62889.0,0.12288437]
[1728858406379,0.079521,62892.0,62891.0,0.07943506]
[1728858406584,0.249521,62892.0,62891.0,0.27012064]
[1728858406783,0.249521,62892.0,62891.0,0.2701185]
[1728858408175,0.249521,62892.0,62891.0,0.19068558]
[1728858408176,0.17,62892.0,62891.0,0.19068558]
[1728858408492,0.13120756,62892.0,62891.0,0.19068558]
[1728858408680,0.13120756,62892.0,62891.0,0.079522]
[1728858409290,0.13220756,62892.0,62891.0,0.079522]
[1728858409785,0.002,62892.0,62891.0,0.26984917]
[1728858409982,0.081521,62892.0,62891.0,0.26984917]
[1728858411281,0.081521,62892.0,62891.0,0.19040686]
[1728858411977,0.081521,62892.0,62891.0,0.11088486]
[1728858412183,0.081521,62892.0,62891.0,0.1903283]
[1728858412381,0.081521,62892.0,62888.0,0.02811076]
[1728858412382,0.079522,62891.0,62890.0,0.07944344]
[1728858412586,0.079522,62891.0,62884.0,0.0037]
[1728858412587,0.249522,62891.0,62889.0,0.07944344]
[1728858412890,0.079528,62886.0,62885.0,0.07944344]
[1728858413093,0.079528,62886.0,62881.0,0.0344]
[1728858413094,0.17,62886.0,62884.0,0.07944344]
[1728858413387,0.24953,62885.0,62884.0,0.079531]
[1728858413980,0.17,62885.0,62884.0,0.079531]
[1728858415189,0.171,62885.0,62884.0,0.079531]
[1728858415377,0.25053,62885.0,62884.0,0.079531]
[1728858415674,0.25153,62885.0,62884.0,0.079531]
[1728858419088,0.25153,62885.0,62877.0,0.0037]
[1728858419089,1.49861,62885.0,62877.0,0.0037]
[1728858419278,1.49861,62885.0,62875.0,0.079542]
[1728858419279,0.079541,62876.0,62875.0,0.079542]
[1728858419484,0.17,62876.0,62868.0,0.3608]
[1728858419681,0.17,62876.0,62874.0,0.061]
[1728858419876,0.17,62876.0,62875.0,0.079542]
[1728858420191,0.249541,62876.0,62875.0,0.079542]
[1728858421677,0.250541,62876.0,62875.0,0.079542]
[1728858422086,0.249541,62876.0,62875.0,0.079542]
[1728858422300,0.181,62876.0,62874.0,0.061]
[1728858422479,0.079542,62875.0,62874.0,0.0302]
[1728858422792,0.079544,62874.0,62873.0,0.079545]
[1728858423488,0.079548,62871.0,62870.0,0.079548]
[1728858423791,0.249548,62871.0,62870.0,0.079548]
[1728858424091,0.249548,62871.0,62868.0,0.13991763]
[1728858424092,0.17,62871.0,62868.0,0.13991763]
[1728858424285,0.17,62871.0,62863.0,0.0037]
[1728858424286,0.079556,62864.0,62863.0,0.0037]
[1728858424488,0.079556,62864.0,62858.0,0.079563]
[1728858424489,0.780356,62864.0,62858.0,0.079563]
[1728858424686,0.249562,62859.0,62858.0,0.079563]
[1728858425194,0.249562,62859.0,62854.0,0.06343727]
[1728858425195,0.079565,62857.0,62854.0,0.06343727]
[1728858425491,0.17,62855.0,62852.0,0.06343727]
[1728858425790,0.079576,62849.0,62846.0,0.14301627]
[1728858425990,0.3608,62848.0,62847.0,0.079578]
[1728858426182,0.5308,62848.0,62847.0,0.079578]
[1728858426886,0.5308,62848.0,62843.0,0.02902309]
[1728858427097,0.17,62844.0,62843.0,0.079582]
[1728858427283,0.249581,62844.0,62843.0,0.079582]
[1728858427484,0.17,62844.0,62843.0,0.079582]
[1728858428782,0.179,62844.0,62843.0,0.079582]
[1728858429185,0.5318,62848.0,62847.0,0.079578]
[1728858429894,0.5308,62848.0,62847.0,0.079578]
[1728858430596,0.17,62851.0,62847.0,0.3608]
[1728858430892,0.39350042,62856.0,62855.0,0.079568]
[1728858430893,0.3608,62856.0,62855.0,0.079568]
[1728858431086,0.3616,62856.0,62855.0,0.079568]
[1728858431280,0.17,62858.0,62857.0,0.079565]
[1728858432598,0.184,62858.0,62857.0,0.079565]
[1728858432798,0.198,62858.0,62857.0,0.079565]
[1728858434399,0.3608,62863.0,62862.0,0.079559]
[1728858434791,0.3608,62863.0,62854.0,0.0037]
[1728858434792,0.079568,62855.0,62854.0,0.0037]
[1728858435089,0.079575,62849.0,62848.0,0.0639]
[1728858435397,0.610375,62849.0,62848.0,0.0639]
[1728858435798,0.610375,62849.0,62848.0,0.032]
[1728858436097,0.610375,62849.0,62842.0,0.079583]
[1728858436098,0.079583,62843.0,62842.0,0.079583]
[1728858436302,0.610383,62843.0,62842.0,0.079583]
[1728858437197,0.610383,62843.0,62836.0,0.14302827]
[1728858437198,0.079589,62838.0,62836.0,0.14302827]
[1728858437398,0.5308,62843.0,62836.0,0.079591]
[1728858437399,0.56260328,62837.0,62836.0,0.079591]
[1728858437991,0.24959,62837.0,62836.0,0.079591]
[1728858438188,0.17,62837.0,62836.0,0.079591]
[1728858438496,0.17,62837.0,62836.0,0.084591]
[1728858439095,0.17,62837.0,62836.0,0.080591]
[1728858439292,0.17,62837.0,62836.0,0.084591]
[1728858441198,0.3608,62843.0,62836.0,0.06843727]
[1728858441398,0.17,62841.0,62837.0,0.06319934]
[1728858441600,0.17,62841.0,62840.0,0.079587]
[1728858443204,0.174,62841.0,62840.0,0.079587]
[1728858443504,0.174,62841.0,62838.0,0.06322452]
[1728858443707,0.174,62841.0,62830.0,0.0037]
[1728858443708,0.079592,62836.0,62834.0,0.06322724]
[1728858443896,0.079592,62836.0,62827.0,0.0037]
[1728858443897,0.079602,62828.0,62827.0,0.0037]
[1728858444094,0.079602,62828.0,62819.0,0.0037]
[1728858444095,0.079606,62825.0,62819.0,0.0037]
[1728858444301,0.7008,62828.0,62811.0,0.079623]
[1728858444302,0.079622,62812.0,62811.0,0.079623]
[1728858444505,0.5308,62812.0,62811.0,0.079623]
[1728858445299,0.3608,62812.0,62811.0,0.079623]
[1728858445602,0.001,62812.0,62811.0,0.251623]
[1728858445799,0.001,62812.0,62811.0,1.329223]
[1728858445994,0.17,62824.0,62823.0,0.079608]
[1728858447824,0.176,62824.0,62823.0,0.079608]
[1728858448434,0.185,62824.0,62823.0,0.079608]
[1728858449840,0.5368,62824.0,62823.0,0.079608]
[1728858450041,0.5458,62824.0,62823.0,0.079608]
[1728858450425,0.5458,62824.0,62815.0,0.079618]
[1728858450426,0.625408,62824.0,62815.0,0.079618]
[1728858450625,0.17,62816.0,62815.0,0.079618]
[1728858452037,0.249617,62816.0,62815.0,0.079618]
[1728858452331,0.079617,62816.0,62815.0,0.080618]
[1728858452619,0.083617,62816.0,62815.0,0.080618]
[1728858453214,0.088617,62816.0,62815.0,0.080618]
[1728858453703,0.009,62816.0,62815.0,0.080618]
[1728858454408,0.32996163,62818.0,62817.0,0.079616]
[1728858454602,0.49996163,62818.0,62817.0,0.079616]
[1728858455506,0.51196163,62818.0,62817.0,0.079616]
[1728858455999,0.191,62818.0,62817.0,0.079616]
[1728858456597,0.021,62818.0,62817.0,0.079616]
[1728858457020,0.021,62818.0,62817.0,1.517976]
[1728858457304,0.3608,62826.0,62825.0,0.079606]
[1728858458512,0.3748,62826.0,62825.0,0.079606]
[1728858458715,0.3848,62826.0,62825.0,0.080606]
[1728858459217,0.0111,62839.0,62838.0,0.079589]
[1728858459427,0.17,62841.0,62840.0,0.079587]
[1728858460114,0.17,62841.0,62833.0,0.3608]
[1728858460309,0.3608,62842.0,62833.0,0.3608]
[1728858460310,0.07959,62838.0,62837.0,0.079589]
[1728858460709,0.3608,62842.0,62833.0,0.3608]
[1728858460902,0.17,62838.0,62837.0,0.07959]
[1728858461511,0.36164,62842.0,62833.0,0.3608]
[1728858461512,0.079585,62841.0,62840.0,0.079587]
[1728858461819,0.249585,62841.0,62840.0,0.079587]
[1728858462016,0.249585,62841.0,62838.0,0.001]
[1728858462017,0.079588,62839.0,62838.0,0.001]
[1728858462205,0.079588,62839.0,62833.0,0.001]
[1728858462206,0.079589,62838.0,62837.0,0.001]
[1728858462720,0.0301,62840.0,62836.0,0.079591]
[1728858463015,0.5316,62841.0,62836.0,0.079591]
[1728858463016,0.17,62837.0,62836.0,0.079591]
[1728858463209,0.5308,62841.0,62840.0,0.079587]
[1728858464606,0.610385,62841.0,62840.0,0.079587]
[1728858465305,0.610385,62841.0,62840.0,0.080587]
[1728858465807,0.610385,62841.0,62840.0,0.081587]
[1728858466209,0.610385,62841.0,62840.0,0.002]
[1728858467825,0.249585,62841.0,62840.0,0.002]
[1728858468115,0.610385,62841.0,62840.0,0.002]
[1728858474328,0.249585,62841.0,62840.0,0.002]
[1728858474511,0.17,62841.0,62840.0,0.002]
[1728858474724,0.1737,62849.0,62840.0,0.172]
[1728858474923,0.01348792,62854.0,62845.0,0.17]
[1728858474924,0.1737,62853.0,62845.0,0.17]
[1728858475125,0.1737,62853.0,62841.0,0.0307]
[1728858475126,0.079574,62850.0,62847.0,0.079577]
[1728858475320,0.17,62849.0,62847.0,0.079577]
[1728858475520,0.17,62849.0,62848.0,0.079576]
[1728858476113,0.079581,62846.0,62845.0,0.07958]
[1728858476318,0.249581,62846.0,62845.0,0.07958]
[1728858477333,0.249581,62846.0,62845.0,0.08058]
[1728858477516,0.17,62846.0,62845.0,0.08058]
[1728858477722,0.174,62846.0,62845.0,0.08158]
[1728858478222,0.253579,62846.0,62845.0,0.08158]
[1728858478427,0.614379,62846.0,62845.0,0.002]
[1728858478727,0.614379,62846.0,62837.0,0.08329]
[1728858478728,0.079589,62838.0,62837.0,0.0037]
[1728858478930,0.079589,62838.0,62832.0,0.079597]
[1728858478931,0.079596,62833.0,62832.0,0.079597]
[1728858479129,0.17,62834.0,62833.0,0.079595]
[1728858479336,0.249594,62834.0,62833.0,0.079595]
[1728858480125,0.2018,62837.0,62836.0,0.079592]
[1728858481416,0.17,62842.0,62836.0,0.3608]
[1728858481723,0.3608,62846.0,62836.0,0.3608]
[1728858481724,0.3916,62846.0,62845.0,0.07958]
[1728858481938,0.249574,62850.0,62849.0,0.079575]
[1728858483034,0.0308,62853.0,62843.0,0.079582]
[1728858483344,0.25195792,62854.0,62851.0,0.610373]
[1728858483345,0.00608792,62854.0,62851.0,0.610373]
[1728858483632,0.3608,62869.0,62851.0,0.5308]
[1728858483633,0.0037,62861.0,62851.0,0.5308]
[1728858483820,0.0313,62862.0,62856.0,0.17]
[1728858484024,0.0313,62862.0,62853.0,0.07957]
[1728858484225,0.0313,62862.0,62852.0,0.2335]
[1728858484832,0.17,62859.0,62857.0,0.079564]
[1728858486025,0.17,62859.0,62857.0,0.001]
[1728858486324,0.079564,62858.0,62857.0,0.001]
[1728858486525,0.079564,62858.0,62856.0,0.001]
[1728858486526,0.249564,62858.0,62856.0,0.001]
[1728858486840,0.079565,62857.0,62856.0,0.001]
[1728858487135,0.079565,62857.0,62848.0,0.083276]
[1728858487333,0.17,62849.0,62848.0,0.079576]
[1728858489129,0.17,62849.0,62848.0,0.001]
[1728858489130,0.249575,62849.0,62848.0,0.001]
[1728858489833,0.254575,62849.0,62848.0,0.002]
[1728858491834,0.254575,62849.0,62848.0,0.081576]
[1728858493334,0.175,62849.0,62848.0,0.081576]
[1728858493724,0.005,62849.0,62848.0,0.251576]
[1728858495027,0.005,62849.0,62848.0,0.728896]
[1728858495227,0.3925,62861.0,62856.0,0.079566]
[1728858495435,0.39334,62861.0,62860.0,0.079561]
[1728858495733,0.3925,62861.0,62860.0,0.079561]
[1728858496035,0.5625,62861.0,62860.0,0.079561]
[1728858497333,0.3925,62861.0,62860.0,0.079561]
[1728858497737,0.3925,62861.0,62860.0,0.080561]
[1728858499741,0.3925,62861.0,62860.0,0.081561]
[1728858500739,0.3608,62861.0,62860.0,0.081561]
[1728858502038,0.079557,62863.0,62860.0,0.081561]
[1728858502833,0.079557,62863.0,62862.0,0.079559]
[1728858504136,0.079557,62863.0,62862.0,0.080559]
[1728858504734,0.079557,62863.0,62862.0,0.081559]
[1728858510135,0.079557,62863.0,62862.0,0.002]
[1728858510340,0.07957,62853.0,62852.0,0.0037]
[1728858510543,0.079571,62852.0,62845.0,0.079579]
[1728858510737,0.17,62846.0,62845.0,0.079579]
[1728858510938,0.249579,62846.0,62845.0,0.079579]
[1728858511142,0.17,62846.0,62845.0,0.079579]
[1728858511336,0.249579,62846.0,62845.0,0.079579]
[1728858512743,0.079581,62845.0,62842.0,0.3608]
[1728858512937,0.079588,62839.0,62837.0,0.079589]
[1728858513240,0.079597,62832.0,62830.0,0.0037]
[1728858513442,0.17,62838.0,62827.0,0.081202]
[1728858513443,0.249598,62831.0,62827.0,0.079602]
[1728858513655,0.249598,62831.0,62825.0,0.0313]
[1728858513656,0.17,62831.0,62828.0,0.079601]
[1728858514044,0.17,62831.0,62823.0,0.0037]
[1728858514245,0.079606,62825.0,62823.0,0.0037]
[1728858514456,0.17,62826.0,62825.0,0.079606]
[1728858515850,0.079607,62824.0,62823.0,0.003]
[1728858516245,0.079607,62824.0,62822.0,0.079609]
[1728858516444,0.079607,62824.0,62820.0,0.02908366]
[1728858516445,0.079607,62824.0,62823.0,0.079608]
[1728858517048,0.176,62826.0,62825.0,0.079606]
[1728858517252,0.181,62826.0,62825.0,0.080606]
[1728858517650,0.006,62826.0,62825.0,0.250606]
[1728858517845,0.3608,62833.0,62832.0,0.079597]
[1728858520045,0.3688,62833.0,62832.0,0.080597]
[1728858520240,0.011,62833.0,62832.0,0.442397]
[1728858521549,0.011,62833.0,62832.0,0.081597]
[1728858524258,0.0023877,62839.0,62838.0,0.079589]
[1728858524454,0.0023877,62839.0,62838.0,0.249589]
[1728858525256,0.0023877,62839.0,62838.0,0.079589]
[1728858525571,0.2045,62847.0,62835.0,0.53236]
[1728858525761,0.079582,62844.0,62843.0,0.079581]
[1728858526146,0.2008,62847.0,62843.0,0.079581]
[1728858526354,0.2008,62847.0,62845.0,0.07958]
[1728858526558,0.079579,62846.0,62845.0,0.07958]
[1728858527651,0.079579,62846.0,62845.0,0.08158]
[1728858529149,0.079579,62846.0,62845.0,0.08058]
[1728858529347,0.080579,62846.0,62845.0,0.002]
[1728858529550,0.441379,62846.0,62845.0,0.002]
[1728858531261,0.079589,62838.0,62837.0,0.0037]
[1728858531459,0.079592,62836.0,62835.0,0.3608]
[1728858533059,0.17,62838.0,62835.0,0.3608]
[1728858533263,0.001,62838.0,62837.0,0.08059]
[1728858534058,0.001,62838.0,62835.0,0.3608]
[1728858534059,0.079587,62840.0,62835.0,0.3608]
[1728858534367,0.249584,62842.0,62841.0,0.079585]
[1728858535163,0.17,62842.0,62833.0,0.0037]
[1728858535352,0.441219,62846.0,62831.0,0.04762721]
[1728858535353,0.17,62834.0,62831.0,0.04762721]
[1728858535552,0.17,62834.0,62829.0,0.0293154]
[1728858535553,0.0315,62833.0,62832.0,0.079597]
[1728858536366,0.111095,62833.0,62832.0,0.079597]
[1728858536858,0.113095,62833.0,62832.0,0.079597]
[1728858537267,0.114095,62833.0,62832.0,0.079597]
[1728858537870,0.113095,62833.0,62832.0,0.079597]
[1728858538071,0.114095,62833.0,62832.0,0.079597]
[1728858538752,0.112095,62833.0,62832.0,0.079597]